bitfinex/quotes_ETHUSD_20250810
["timestamp","ask_amount","ask_price","bid_price","bid_amount"]
[1754787709984,0.002,4320.1,4320.0,2.31481481]
[1754787710471,0.002,4320.1,4320.0,3.23761481]
[1754787714586,1e-08,4320.1,4320.0,6.24886153]
[1754787714898,1e-08,4320.1,4320.0,6.23761481]
[1754787716992,1e-08,4320.1,4320.0,6.78761481]
[1754787717603,1e-08,4320.9,4320.8,2.31438622]
[1754787717788,1e-08,4320.9,4320.8,10.45018622]
[1754787719176,1e-08,4320.9,4320.8,11.00018622]
[1754787720205,1e-08,4320.9,4320.8,11.11618622]
[1754787720747,0.04,4321.9,4321.8,2.31385071]
[1754787720877,0.04,4321.9,4321.8,6.5025913]
[1754787721078,0.04,4321.9,4321.8,7.4253913]
[1754787721373,0.04,4321.9,4321.8,2.4245913]
[1754787721610,2.31385267,4321.8,4321.0,6.50423782]
[1754787721812,0.4667554,4321.8,4321.4,0.116]
[1754787722119,2.31417864,4321.2,4320.7,0.116]
[1754787722314,0.08,4321.1,4320.7,0.116]
[1754787722616,0.04,4321.9,4320.7,0.116]
[1754787722787,0.116,4321.7,4321.0,0.116]
[1754787722978,2.31434572,4320.9,4320.2,0.116]
[1754787723179,2.31439647,4320.8,4320.0,2.31477161]
[1754787723499,0.116,4321.0,4320.4,2.43055126]
[1754787723678,0.35901206,4321.0,4320.4,2.43055126]
[1754787723879,0.116,4321.0,4320.4,0.116]
[1754787724922,0.08,4321.0,4319.9,4.187]
[1754787725195,2.31454692,4320.5,4320.0,0.116]
[1754787725487,0.116,4320.1,4319.6,2.31501796]
[1754787725919,0.116,4320.1,4319.6,0.4384]
[1754787726076,0.116,4320.4,4319.7,0.116]
[1754787726279,0.116,4320.0,4319.3,0.116]
[1754787726501,0.116,4320.0,4319.3,2.43118148]
[1754787726903,0.116,4320.0,4319.5,2.3150359]
[1754787727156,0.116,4320.0,4319.8,2.3148801]
[1754787727361,0.116,4320.4,4319.9,2.31486485]
[1754787727758,0.116,4320.4,4319.8,2.31491923]
[1754787727959,0.116,4320.4,4319.7,2.43097143]
[1754787728269,0.116,4320.4,4319.8,2.31491541]
[1754787728775,0.116,4320.4,4319.7,0.116]
[1754787728979,0.116,4320.4,4319.1,0.001]
[1754787728980,0.116,4320.0,4319.4,0.116]
[1754787729281,0.116,4320.0,4319.8,2.31491685]
[1754787729587,0.116,4320.0,4319.4,0.116]
[1754787729785,0.116,4320.0,4319.2,2.31524356]
[1754787730085,0.116,4320.0,4319.6,2.31502662]
[1754787730246,0.116,4320.4,4319.7,0.116]
[1754787730755,0.116,4320.4,4319.6,2.31500022]
[1754787730756,0.116,4320.0,4319.6,2.31500022]
[1754787731087,0.116,4320.0,4319.4,0.116]
[1754787731878,0.116,4320.0,4319.4,2.43112866]
[1754787732081,0.116,4320.0,4319.4,0.116]
[1754787732480,0.116,4320.0,4319.4,2.43112829]
[1754787732661,0.116,4320.0,4319.6,2.31502619]
[1754787732851,0.116,4320.0,4319.5,2.31508276]
[1754787733053,0.116,4320.0,4319.4,2.4311306]
[1754787733380,2.31449864,4320.6,4319.8,2.31491362]
[1754787733566,0.02893183,4320.5,4319.1,0.001]
[1754787733748,4.18293183,4320.5,4319.1,0.001]
[1754787733944,0.116,4319.4,4319.1,0.001]
[1754787734180,2.43113704,4319.4,4319.1,0.001]
[1754787734384,0.5906113,4319.4,4319.1,0.001]
[1754787734550,0.02893317,4320.3,4319.1,0.001]
[1754787734750,0.116,4319.3,4319.1,0.001]
[1754787735050,2.31503898,4319.6,4319.1,0.001]
[1754787735245,2.31498028,4319.7,4319.1,0.001]
[1754787735480,0.02893384,4320.2,4319.1,0.001]
[1754787735663,2.31510763,4319.5,4319.1,0.001]
[1754787735989,2.3151809,4319.4,4319.1,0.001]
[1754787736283,2.31524356,4319.2,4319.1,0.001]
[1754787736662,2.39524356,4319.2,4319.1,0.001]
[1754787738157,2.94524356,4319.2,4319.1,0.001]
[1754787738385,3.88588324,4319.2,4319.1,0.001]
[1754787738684,3.91482378,4319.2,4319.1,0.001]
[1754787739185,3.88588324,4319.2,4319.1,0.001]
[1754787740164,3.91482378,4319.2,4319.1,0.001]
[1754787740488,3.83482378,4319.2,4319.1,0.001]
[1754787740962,3.91482378,4319.2,4319.1,0.001]
[1754787741287,3.83482378,4319.2,4319.1,0.001]
[1754787741474,3.83482378,4319.2,4319.1,1e-08]
[1754787741475,6.91482378,4319.2,4319.1,1e-08]
[1754787741681,6.88588324,4319.2,4319.1,1e-08]
[1754787743058,0.55,4319.0,4318.6,1e-08]
[1754787743273,3.55,4318.7,4318.6,1e-08]
[1754787743476,10.0104555,4318.7,4318.6,1e-08]
[1754787743682,9.98151161,4318.7,4318.6,1e-08]
[1754787743889,10.06151161,4318.7,4318.6,1e-08]
[1754787745488,10.17751161,4318.7,4318.6,1e-08]
[1754787745678,12.30368777,4318.7,4318.6,1e-08]
[1754787745896,2.86572609,4318.3,4318.2,1e-08]
[1754787746117,6.01067266,4318.3,4318.2,1e-08]
[1754787746299,0.55,4318.0,4317.8,0.001]
[1754787746485,7.11288986,4317.9,4317.8,0.001]
[1754787746809,8.02681293,4317.9,4317.8,0.001]
[1754787747898,3.92481293,4317.9,4317.8,0.001]
[1754787748103,8.02181293,4317.9,4317.8,0.001]
[1754787748423,7.46981293,4317.9,4317.8,0.001]
[1754787748718,6.52594061,4317.9,4317.8,0.9258]
[1754787749016,6.52594061,4317.9,4317.8,0.001]
[1754787749977,6.52594061,4317.9,4317.8,0.4657]
[1754787750177,6.52594061,4317.9,4317.8,0.9258]
[1754787750512,6.52594061,4317.9,4317.8,0.001]
[1754787751110,2.43194061,4317.9,4317.8,0.001]
[1754787751312,6.99772115,4317.9,4317.8,0.9258]
[1754787751836,6.99772115,4317.9,4317.8,0.001]
[1754787752695,9.99772115,4317.9,4317.8,0.001]
[1754787753202,10.54772115,4317.9,4317.8,0.001]
[1754787753794,0.55,4317.7,4316.0,0.4647]
[1754787753999,0.116,4316.7,4315.7,0.4611]
[1754787754207,2.43258442,4316.7,4316.2,0.9248]
[1754787754396,6.50358442,4316.7,4316.6,0.9623]
[1754787754806,4.187,4316.7,4316.6,0.9623]
[1754787755009,0.116,4316.7,4316.6,0.9623]
[1754787755314,4.187,4316.7,4316.6,0.9623]
[1754787755514,4.07,4316.9,4316.6,0.9623]
[1754787755685,4.186,4317.0,4316.7,0.9248]
[1754787755886,4.185,4317.0,4316.8,0.9248]
[1754787756086,6.38542344,4317.0,4316.6,0.0375]
[1754787756287,0.116,4316.7,4316.6,0.5022]
[1754787756592,0.116,4316.7,4316.6,3.27893809]
[1754787757117,0.116,4316.7,4316.6,0.9623]
[1754787757296,2.31590373,4318.0,4316.8,2.31650848]
[1754787757499,0.4297276,4318.4,4316.6,3.27893809]
[1754787757500,2.31609605,4317.7,4316.9,0.9248]
[1754787757698,4.066,4317.8,4317.0,0.9248]
[1754787757699,0.116,4317.3,4317.0,0.9248]
[1754787757901,0.116,4317.3,4316.8,2.31649981]
[1754787757902,4.44172136,4318.7,4317.6,2.31609038]
[1754787758104,0.116,4317.8,4317.7,0.9248]
[1754787758501,0.116,4317.8,4317.7,3.24084789]
[1754787759028,4.175,4318.3,4317.8,2.31596095]
[1754787759394,4.175,4318.3,4317.9,0.9248]
[1754787759597,4.175,4318.3,4318.1,2.31583335]
[1754787759815,4.175,4318.3,4318.2,0.9248]
[1754787760231,4.5925,4318.3,4318.2,0.9248]
[1754787760594,4.175,4318.3,4318.2,0.9248]
[1754787760892,4.175,4318.3,4318.2,3.24057972]
[1754787761093,2.35488355,4319.9,4318.2,0.9248]
[1754787761306,0.116,4319.0,4318.6,2.31552627]
[1754787761525,4.051,4318.9,4318.6,0.9248]
[1754787761734,0.116,4318.7,4318.6,0.4647]
[1754787761905,0.116,4318.7,4318.2,1.0408]
[1754787762088,0.116,4318.7,4318.3,0.9248]
[1754787762288,0.116,4318.7,4318.5,2.31557282]
[1754787762525,0.116,4318.7,4318.3,3.240517]
[1754787762526,0.116,4318.7,4318.4,0.9248]
[1754787762825,0.116,4318.7,4318.4,3.24046644]
[1754787763134,0.116,4318.7,4318.2,0.116]
[1754787763298,2.31561369,4318.6,4318.2,0.116]
[1754787763499,0.116,4318.3,4317.9,0.9248]
[1754787763803,0.116,4318.3,4318.0,0.4647]
[1754787764009,0.116,4318.3,4317.7,0.001]
[1754787764213,0.116,4317.9,4317.7,0.001]
[1754787764596,0.116,4317.9,4317.8,0.9248]
[1754787765490,4.038,4318.4,4317.8,0.9248]
[1754787765724,4.038,4318.4,4317.9,0.9248]
[1754787765931,4.033,4318.8,4318.0,0.9248]
[1754787766132,0.116,4318.7,4318.2,2.31577567]
[1754787766335,0.116,4318.7,4318.3,0.9248]
[1754787766740,0.02894456,4318.6,4318.3,0.9248]
[1754787766947,0.02894456,4318.6,4318.4,0.9248]
[1754787767236,0.116,4318.7,4318.5,0.902]
[1754787767399,0.116,4318.7,4318.3,2.31571698]
[1754787767603,0.116,4318.7,4318.6,0.902]
[1754787768398,2.43151161,4318.7,4318.6,0.902]
[1754787768618,0.99418773,4318.7,4318.2,0.116]
[1754787768938,0.02894322,4318.8,4317.7,0.001]
[1754787769150,0.002,4319.0,4318.4,2.31562522]
[1754787769445,0.002,4319.0,4318.5,0.902]
[1754787769601,0.118,4319.0,4318.5,0.902]
[1754787769801,0.118,4319.0,4318.6,0.902]
[1754787770807,0.02894255,4318.9,4318.3,0.4485]
[1754787771009,2.31546073,4318.8,4318.3,0.4485]
[1754787771231,2.3156635,4318.5,4318.3,0.4485]
[1754787771400,0.1449459,4318.4,4317.9,0.902]
[1754787771595,0.116,4318.4,4318.1,2.31582482]
[1754787771801,0.116,4318.4,4317.8,0.116]
[1754787771802,0.116,4318.4,4318.2,0.902]
[1754787772010,0.116,4318.4,4317.8,0.116]
[1754787772240,0.116,4318.4,4318.3,0.902]
[1754787773144,0.116,4318.4,4317.8,0.116]
[1754787773145,0.116,4318.4,4317.8,1.018]
[1754787773310,0.116,4318.4,4317.8,0.902]
[1754787773507,0.116,4318.4,4317.8,3.21794187]
[1754787773709,2.43167602,4318.4,4317.8,0.902]
[1754787773937,0.116,4318.4,4317.8,3.21799317]
[1754787774305,0.116,4318.4,4317.8,0.902]
[1754787774507,2.31582523,4318.2,4317.8,0.902]
[1754787774701,0.116,4318.0,4317.7,0.001]
[1754787774932,2.31599425,4317.8,4317.7,0.001]
[1754787776441,2.31595065,4317.9,4317.7,0.001]
[1754787776738,9.31199425,4317.8,4317.7,1e-08]
[1754787777056,2.31594369,4317.9,4317.7,1e-08]
[1754787777206,3.998,4317.8,4317.7,0.44850001]
[1754787777403,2.3158625,4318.1,4317.7,0.45350001]
[1754787777619,2.31588408,4318.1,4317.8,0.4535]
[1754787777821,6.78754178,4318.2,4317.8,0.4535]
[1754787778046,2.31594061,4317.9,4317.8,0.902]
[1754787778842,0.62234066,4319.6,4317.8,0.902]
[1754787779047,3.0,4318.8,4317.9,0.902]
[1754787779339,3.0,4318.8,4317.7,1e-08]
[1754787779340,3.992,4318.9,4318.0,0.902]
[1754787779643,3.992,4318.9,4318.1,0.902]
[1754787779826,3.992,4318.9,4318.2,0.902]
[1754787780025,3.992,4318.9,4318.2,0.4535]
[1754787780225,3.992,4318.9,4318.3,0.4485]
[1754787780418,3.02894322,4318.8,4317.7,0.90200001]
[1754787780620,0.55,4318.6,4317.7,0.44850001]
[1754787780840,2.31599425,4317.8,4317.7,1e-08]
[1754787781047,0.3994,4318.9,4317.7,0.90200001]
[1754787781252,4.56694322,4318.8,4317.7,0.90200001]
[1754787781411,1.09683432,4318.7,4317.7,0.90200001]
[1754787781744,5.3155334,4318.7,4317.8,0.4485]
[1754787781942,2.31562981,4318.5,4317.8,0.4485]
[1754787782142,2.31551767,4318.7,4317.9,2.31594061]
[1754787782344,2.31551767,4318.7,4317.7,0.45350001]
[1754787782345,3.988,4318.8,4317.7,1e-08]
[1754787782645,0.55,4318.7,4317.7,1e-08]
[1754787782841,2.31561884,4318.5,4317.8,0.4485]
[1754787783047,3.988,4318.8,4317.8,0.902]
[1754787783251,2.31744909,4318.9,4317.9,0.902]
[1754787783460,2.31744909,4318.9,4317.7,1e-08]
[1754787783461,3.985,4318.9,4318.0,0.902]
[1754787783622,6.30040584,4318.9,4318.0,0.902]
[1754787783822,3.985,4318.9,4318.0,0.902]
[1754787784058,6.30040985,4318.9,4318.0,0.902]
[1754787784452,6.30040985,4318.9,4318.2,2.31577854]
[1754787784453,3.985,4318.9,4318.2,2.31577854]
[1754787784631,6.30041443,4318.9,4318.1,2.31582095]
[1754787785657,3.985,4318.9,4318.2,2.31577107]
[1754787785861,3.985,4318.9,4318.3,3.21770129]
[1754787786033,0.002,4318.9,4318.6,2.31556522]
[1754787786233,0.002,4318.9,4318.7,0.902]
[1754787786461,0.002,4318.9,4318.8,2.31545799]
[1754787786635,0.002,4318.9,4318.8,3.33345799]
[1754787786957,0.002,4319.0,4318.9,2.31540438]
[1754787787160,1e-08,4319.0,4318.9,3.21740438]
[1754787787344,0.002,4319.6,4319.5,2.31508276]
[1754787787661,0.002,4319.6,4319.5,5.44233618]
[1754787787828,0.002,4319.6,4319.5,6.33308276]
[1754787788029,0.002,4319.6,4319.5,6.54435199]
[1754787788456,0.002,4319.7,4319.6,5.31502916]
[1754787788629,0.002,4319.7,4319.6,6.42829839]
[1754787789238,0.002,4319.7,4319.6,6.42790037]
[1754787789576,0.002,4319.7,4319.6,1.11287121]
[1754787789859,0.002,4319.7,4319.6,0.21087121]
[1754787790159,0.002,4319.7,4319.6,0.20177121]
[1754787790943,2.31697557,4319.7,4319.6,0.20177121]
[1754787791176,0.002,4319.7,4319.6,0.20177121]
[1754787791787,2.31697557,4319.7,4319.6,0.20177121]
[1754787791939,2.79596154,4319.7,4319.6,0.20177121]
[1754787792972,2.31697557,4319.7,4319.6,0.20177121]
[1754787793289,0.002,4319.7,4319.6,0.20177121]
[1754787793585,2.43297557,4319.7,4319.6,0.20177121]
[1754787794873,2.57981276,4319.7,4319.6,0.20177121]
[1754787795038,6.12981276,4319.7,4319.6,0.20177121]
[1754787795243,6.12981276,4319.7,4318.2,2.3157596]
[1754787795244,2.31537331,4319.0,4318.2,2.4317596]
[1754787795452,0.116,4318.8,4318.2,0.116]
[1754787795651,2.43146104,4318.8,4318.2,0.116]
[1754787795857,0.116,4318.8,4318.2,0.116]
[1754787796061,0.02894389,4318.7,4318.2,0.116]
[1754787796258,3.982,4319.2,4317.7,1e-08]
[1754787796259,0.116,4318.3,4317.7,1e-08]
[1754787796577,0.116,4318.0,4317.7,1e-08]
[1754787796782,0.02894925,4317.9,4317.7,1e-08]
[1754787796960,2.34489039,4317.9,4317.7,1e-08]
[1754787797162,2.31599425,4317.8,4317.7,1e-08]
[1754787797357,0.116,4318.0,4317.7,1e-08]
[1754787797562,2.31598379,4317.9,4317.7,1e-08]
[1754787798166,2.31594061,4317.9,4317.7,1e-08]
[1754787798686,2.43189978,4318.0,4317.7,1e-08]
[1754787799064,0.116,4318.0,4317.7,1e-08]
[1754787799564,3.982,4318.7,4317.8,0.9245]
[1754787799752,0.116,4318.4,4317.9,0.4644]
[1754787799951,0.116,4318.4,4318.0,0.9245]
[1754787800169,4.098,4318.7,4318.1,0.9245]
[1754787800369,4.098,4318.7,4318.3,2.31567901]
[1754787800570,0.116,4318.7,4318.4,3.24012978]
[1754787800773,2.31507437,4319.6,4318.5,3.24011822]
[1754787800958,0.116,4319.2,4318.6,0.116]
[1754787801164,0.116,4319.2,4318.6,2.43155221]
[1754787801491,2.43125592,4319.2,4318.6,0.116]
[1754787801674,0.116,4319.2,4318.6,0.116]
[1754787801987,0.116,4319.2,4318.7,0.67553868]
[1754787802282,0.116,4319.2,4318.9,2.31539997]
[1754787802598,0.116,4319.2,4319.0,1.13563868]
[1754787802798,0.116,4319.2,4319.1,0.211126]
[1754787803094,0.116,4319.2,4319.1,0.675526]
[1754787803297,0.116,4319.2,4319.1,0.211126]
[1754787805790,2.43124356,4319.2,4319.1,0.211126]
[1754787806089,3.07256792,4319.2,4319.1,0.211126]
[1754787806406,6.10150846,4319.2,4319.1,0.211126]
[1754787806689,3.55,4319.1,4318.3,0.001]
[1754787806885,0.116,4318.4,4318.3,0.001]
[1754787807102,0.116,4318.4,4318.3,0.21232495]
[1754787807289,0.04,4319.9,4318.3,1.13682495]
[1754787807490,0.116,4319.3,4318.8,2.31540603]
[1754787807792,0.116,4319.3,4318.9,1.13582495]
[1754787807991,0.04,4319.9,4318.6,0.116]
[1754787807992,2.31502916,4319.6,4319.0,0.21132495]
[1754787808293,2.31502916,4319.6,4319.1,0.21132495]
[1754787808294,2.31524356,4319.2,4319.1,0.21132495]
[1754787808786,2.43124356,4319.2,4319.1,0.21132495]
[1754787808989,10.1080841,4319.2,4319.1,0.21132495]
[1754787809192,10.15914356,4319.2,4319.1,0.21132495]
[1754787809389,2.31567247,4318.4,4318.3,0.001]
[1754787809619,0.116,4319.1,4318.4,0.9245]
[1754787809893,0.116,4319.1,4318.5,0.79184554]
[1754787810190,3.0,4319.6,4318.9,2.31537277]
[1754787810191,0.116,4319.3,4318.9,2.31537277]
[1754787810366,3.98,4319.6,4318.5,0.116]
[1754787810367,3.98,4319.6,4319.3,2.31514905]
[1754787810568,0.002,4319.7,4319.4,1.13594554]
[1754787810771,0.002,4319.7,4319.6,2.31502916]
[1754787810967,0.002,4319.7,4319.6,2.5264747]
[1754787811175,0.002,4319.7,4319.6,3.4509747]
[1754787813110,0.002,4319.7,4319.6,3.5669747]
[1754787813464,0.002,4319.7,4319.6,3.46222678]
[1754787813665,0.002,4319.7,4319.6,3.56892678]
[1754787813997,0.002,4319.8,4319.7,2.31497557]
[1754787814195,0.002,4319.8,4319.7,2.52642111]
[1754787814500,0.002,4319.8,4319.7,6.45092111]
[1754787814673,0.002,4320.6,4319.9,2.31486839]
[1754787814877,0.002,4320.6,4320.1,0.116]
[1754787815079,0.002,4320.6,4320.1,2.64220677]
[1754787815371,0.002,4320.6,4320.1,3.56670677]
[1754787815776,0.002,4320.6,4320.1,3.57795215]
[1754787816866,1e-08,4320.2,4320.1,7.11670677]
[1754787817484,1e-08,4320.6,4320.5,2.31454692]
[1754787817793,1e-08,4320.6,4320.5,9.61999246]
[1754787817967,1e-08,4320.6,4320.5,10.54449246]
[1754787818395,1e-08,4320.6,4320.5,10.97849246]
[1754787818597,1e-08,4320.9,4320.8,2.86438622]
[1754787818799,1e-08,4320.9,4320.8,6.08706777]
[1754787818998,1e-08,4320.9,4320.8,7.11633176]
[1754787820997,1e-08,4320.9,4320.8,10.97633176]
[1754787821515,1e-08,4320.9,4320.8,10.97463319]
[1754787821988,1e-08,4320.9,4320.8,6.44863319]
[1754787822190,1e-08,4320.9,4320.8,10.42463319]
[1754787822695,1e-08,4320.9,4320.8,7.42463319]
[1754787822903,1e-08,4320.9,4320.8,2.52413319]
[1754787823214,1e-08,4320.9,4320.8,0.20974697]
[1754787823416,0.23142698,4320.9,4320.8,0.20974697]
[1754787823730,2.31444767,4320.7,4319.9,6.28982348]
[1754787823929,2.43223267,4320.9,4318.7,5.554]
[1754787823930,0.02892916,4320.9,4320.0,0.20981109]
[1754787824218,1e-08,4320.9,4320.2,2.31470765]
[1754787824425,1e-08,4320.9,4320.3,0.20981109]
[1754787824596,1e-08,4320.9,4320.4,0.20981109]
[1754787824798,2.31439442,4320.8,4320.5,0.20981109]
[1754787824996,2.54128557,4320.7,4320.6,0.20981109]
[1754787825227,2.31457248,4320.5,4319.5,3.975]
[1754787825393,2.31457248,4320.5,4319.6,0.20986316]
[1754787825394,2.31472387,4320.2,4319.6,0.20986316]
[1754787825584,0.02893451,4320.1,4319.7,0.20986316]
[1754787825787,2.31472518,4320.2,4319.8,0.20986316]
[1754787826106,2.31465631,4320.3,4319.9,0.20986316]
[1754787826308,0.1979,4320.7,4320.0,0.20986316]
[1754787826525,0.46286316,4320.8,4320.1,0.20986316]
[1754787826728,3.0,4320.8,4320.2,0.20986316]
[1754787826887,0.08,4320.7,4319.3,2.31518378]
[1754787827086,2.31473023,4320.2,4319.4,2.52504002]
[1754787827287,0.08,4320.7,4319.5,0.20990436]
[1754787827521,2.31468225,4320.3,4319.6,0.20990436]
[1754787827724,2.31471853,4320.2,4319.7,0.20990436]
[1754787828036,2.31486839,4319.9,4319.8,0.20990436]
[1754787828827,2.43276839,4319.9,4319.8,0.20990436]
[1754787829198,2.31481964,4320.0,4319.8,0.20990436]
[1754787829402,2.55429677,4320.0,4319.9,0.20990436]
[1754787829600,0.23948196,4320.0,4319.9,0.20990436]
[1754787829805,4.1719,4320.8,4319.9,0.20990436]
[1754787830028,4.1719,4320.8,4319.0,0.4638]
[1754787830029,3.0,4320.7,4320.0,0.20990436]
[1754787830326,3.0,4320.7,4320.1,0.20990436]
[1754787830502,2.31450784,4320.6,4320.2,0.20990436]
[1754787830696,2.31449335,4320.6,4320.3,0.20990436]
[1754787830912,2.31460049,4320.4,4319.5,2.31503704]
[1754787831228,0.116,4320.2,4319.6,0.32625052]
[1754787831416,0.116,4320.2,4319.8,2.31491592]
[1754787831726,3.0,4320.7,4320.0,2.31477068]
[1754787831932,0.116,4320.6,4320.1,0.21025052]
[1754787832100,0.116,4320.6,4320.2,0.21025052]
[1754787832101,0.35923909,4320.6,4320.2,0.21025052]
[1754787832305,0.00200001,4320.9,4320.3,0.21025052]
[1754787832306,2.31460049,4320.4,4320.3,0.21025052]
[1754787832700,2.43060049,4320.4,4320.3,0.21025052]
[1754787832913,0.00200001,4320.9,4320.3,0.21025052]
[1754787833226,0.116,4320.8,4320.4,0.21025052]
[1754787833385,0.116,4320.8,4320.5,0.21029708]
[1754787833585,0.116,4320.8,4320.6,0.21029708]
[1754787833816,0.116,4320.8,4320.7,0.21029708]
[1754787833986,1.08546453,4320.8,4320.0,0.116]
[1754787834187,3.39985359,4320.8,4320.1,0.21030045]
[1754787834392,2.3144413,4320.7,4320.2,0.21030045]
[1754787834588,0.02893116,4320.6,4320.3,0.21030045]
[1754787834788,0.02893116,4320.6,4320.4,0.21030045]
[1754787834789,2.43244692,4320.5,4320.4,0.21030045]
[1754787835030,2.3149957,4319.7,4319.3,0.116]
[1754787835188,2.34398534,4319.6,4319.4,0.21056457]
[1754787835391,2.34398534,4319.6,4319.5,0.21056457]
[1754787835622,2.31504748,4319.6,4319.5,0.21056457]
[1754787836030,2.43104748,4319.6,4319.5,0.21056457]
[1754787836331,2.90564549,4319.6,4319.5,0.21056457]
[1754787837215,3.68248335,4319.6,4319.5,0.21056457]
[1754787837410,2.31545506,4318.9,4318.5,0.001]
[1754787837612,2.31551161,4318.7,4318.6,0.21079387]
[1754787837989,2.43151161,4318.7,4318.6,0.21079387]
[1754787838189,2.90910044,4318.7,4318.6,0.21079387]
[1754787840896,0.116,4318.7,4318.6,3.44245886]
[1754787841097,0.116,4319.2,4318.6,0.21079387]
[1754787841303,0.116,4319.2,4318.7,0.21079387]
[1754787841502,0.116,4319.2,4318.8,2.52624964]
[1754787841694,2.31508824,4319.5,4318.9,0.21079387]
[1754787841897,2.31529716,4319.1,4319.0,0.21079387]
[1754787842394,0.116,4319.1,4319.0,0.21079387]
[1754787842795,2.43129716,4319.1,4319.0,0.21079387]
[1754787843228,2.31556522,4318.6,4318.5,0.001]
[1754787843398,2.31556522,4318.6,4318.5,0.2116317]
[1754787843599,2.43156522,4318.6,4318.5,0.2116317]
[1754787843798,0.116,4318.6,4318.5,0.2116317]
[1754787844407,2.43156522,4318.6,4318.5,0.2116317]
[1754787844612,0.9878039,4318.6,4318.5,0.2116317]
[1754787844806,0.116,4318.6,4318.5,0.2116317]
[1754787846206,3.97,4318.9,4318.5,2.52725054]
[1754787846427,0.116,4318.8,4318.6,0.2106317]
[1754787846733,3.97,4318.9,4318.7,3.44224331]
[1754787846901,3.97,4318.9,4318.8,2.97838969]
[1754787847099,0.116,4319.2,4318.8,1.1267317]
[1754787847337,0.116,4319.2,4318.9,0.2106317]
[1754787847508,0.116,4319.2,4319.0,0.2106317]
[1754787847838,2.43124356,4319.2,4319.1,0.2106317]
[1754787848036,3.07136792,4319.2,4318.5,0.001]
[1754787848347,0.116,4318.8,4318.7,2.31551161]
[1754787848544,3.97,4319.0,4318.7,1.12658321]
[1754787848706,3.97,4319.2,4318.8,2.52589957]
[1754787848906,3.97,4319.2,4318.9,0.21048321]
[1754787849239,2.31529716,4319.1,4319.0,0.21048321]
[1754787849437,2.3154935,4318.8,4318.5,0.001]
[1754787849614,4.61010886,4319.2,4318.6,0.21064091]
[1754787849615,6.42946897,4318.7,4318.6,0.21064091]
[1754787849948,6.40052508,4318.7,4318.6,0.21064091]
[1754787850851,4.085,4318.7,4318.6,0.21064091]
[1754787851050,6.40051161,4318.7,4318.6,0.21064091]
[1754787851570,10.82210461,4318.7,4318.6,0.21064091]
[1754787851712,10.82210461,4318.7,4318.5,0.001]
[1754787851713,5.86556522,4318.6,4318.5,0.001]
[1754787851912,6.06346522,4318.6,4318.5,1e-08]
[1754787852218,6.06346522,4318.6,4317.5,0.001]
[1754787852219,2.86642344,4317.0,4315.7,0.001]
[1754787852428,2.31683825,4316.3,4315.7,0.001]
[1754787852643,4.19968383,4316.2,4315.9,0.21137644]
[1754787852811,4.19968383,4316.2,4315.7,0.001]
[1754787852812,2.31701383,4315.9,4315.7,0.001]
[1754787853011,5.3459765,4315.9,4315.8,0.21243916]
[1754787853327,2.31701383,4315.9,4315.8,0.21243916]
[1754787853519,2.3459765,4315.9,4315.8,0.21243916]
[1754787853723,4.19795495,4315.9,4315.8,0.21243916]
[1754787854048,6.968,4315.9,4315.8,0.21243916]
[1754787854351,3.968,4315.9,4315.8,0.21243916]
[1754787854732,4.084,4315.9,4315.8,0.21243916]
[1754787854928,0.116,4315.9,4315.8,2.52950667]
[1754787855252,4.084,4315.9,4315.8,1.12853916]
[1754787855424,4.084,4315.9,4315.8,0.66473916]
[1754787855620,4.084,4315.9,4315.8,0.21243916]
[1754787856336,4.084,4315.9,4315.8,1.12853916]
[1754787857251,4.084,4315.9,4315.8,0.21243916]
[1754787857453,4.4924,4315.9,4315.8,0.21243916]
[1754787857753,9.80941383,4315.9,4315.8,0.21243916]
[1754787858448,7.4924,4315.9,4315.8,0.21169882]
[1754787858653,0.5244,4315.9,4315.8,0.21169882]
[1754787858862,4.084,4315.9,4315.8,1.14809882]
[1754787859673,4.084,4315.9,4315.8,3.46516633]
[1754787860128,3.968,4315.9,4315.8,3.46516633]
[1754787860531,3.967,4316.1,4316.0,2.31696014]
[1754787860731,3.967,4316.4,4316.2,2.31685278]
[1754787860930,3.967,4316.4,4316.3,3.46389793]
[1754787861229,3.967,4316.8,4316.3,1.26309882]
[1754787861443,4.3637,4316.8,4316.4,1.14709882]
[1754787861640,4.4797,4316.8,4316.5,0.21069882]
[1754787861837,4.4797,4316.8,4316.6,0.21069882]
[1754787862048,4.4797,4316.8,4316.4,0.9364]
[1754787862049,10.23023076,4316.8,4316.7,0.21069882]
[1754787862226,0.116,4316.5,4315.9,2.31700946]
[1754787862426,4.21026064,4316.4,4316.0,0.21063176]
[1754787862626,3.966,4316.3,4316.1,0.21063176]
[1754787862864,0.116,4316.0,4315.8,0.001]
[1754787863073,0.116,4316.0,4315.9,0.21064512]
[1754787863441,0.116,4316.0,4315.9,1.14704512]
[1754787863630,3.966,4316.3,4316.0,2.31696014]
[1754787863826,3.966,4316.4,4316.1,0.21064512]
[1754787864073,3.966,4316.4,4316.2,0.21064512]
[1754787864230,3.966,4316.4,4316.3,0.21064512]
[1754787864432,0.116,4316.5,4316.3,0.21064512]
[1754787864660,3.0,4317.1,4316.5,2.31668859]
[1754787864831,0.116,4316.8,4316.6,0.21064512]
[1754787865140,3.966,4317.0,4316.7,0.21064512]
[1754787865339,4.23462664,4317.1,4316.8,0.21064512]
[1754787865554,3.965,4317.0,4316.9,1.14704512]
[1754787866660,3.965,4317.0,4316.9,0.21064512]
[1754787866967,3.965,4317.0,4316.9,1.14704512]
[1754787867744,3.965,4317.1,4316.9,1.14704512]